fUST/lending_fUST_20250817
["ID","MTS","AMOUNT","RATE_DAILY","PERIOD"]
[379934477,1755442423577,5000.0,0.00018371,2]
[379934478,1755442426725,480.82185931,0.00018369,2]
[379934479,1755442432249,480.0,0.00018369,2]
[379934480,1755442432860,461.84929247,0.00018369,2]
[379934481,1755442434351,480.0,0.00018369,2]
[379934482,1755442434561,467.93135839,0.00018369,2]
[379934483,1755442434584,12.06864161,0.00018369,2]
[379934484,1755442439599,5000.0,0.00018371,2]
[379934485,1755442453506,203.34792415,0.00018368,2]
[379934486,1755442454842,480.0,0.00018369,2]
[379934487,1755442455620,480.0,0.00018369,2]
[379934488,1755442455872,3824.58343424,0.00018371,2]
[379934489,1755442455930,1175.41656576,0.00018371,2]
[379934490,1755442455968,460.0,0.00018369,2]
[379934491,1755442458601,460.0,0.00018369,2]
[379934492,1755442462871,480.0,0.00018369,2]
[379934493,1755442462998,341.03458373,0.00018369,2]
[379934494,1755442463759,460.90478405,0.00018369,2]
[379934495,1755442469386,480.0,0.00018369,2]
[379934496,1755442472350,5000.0,0.00018371,2]
[379934497,1755442478784,480.0,0.00018369,2]
[379934498,1755442483567,460.0,0.00018369,2]
[379934499,1755442488530,202.64406646,0.00018371,2]
[379934500,1755442488555,4797.35593354,0.00018371,2]
[379934502,1755442503995,5000.0,0.00018371,2]
[379934503,1755442510643,202.64406646,0.00018369,2]
[379934504,1755442510667,277.35593354,0.00018369,2]
[379934505,1755442520131,5000.0,0.00018371,2]
[379934506,1755442527780,2035.26321384,0.00018365,2]
[379934507,1755442530743,1480.1,0.00018369,2]
[379934508,1755442536811,1207.28085262,0.00018371,2]
[379934509,1755442536837,706.76661847,0.00018371,2]
[379934510,1755442545278,466.86973824,0.00018369,2]
[379934511,1755442550608,500.99353938,0.00018369,2]
[379934512,1755442550868,480.0,0.00018369,2]
[379934513,1755442554550,500.0,0.00018369,2]
[379934514,1755442554932,500.0,0.00018369,2]
[379934515,1755442555491,500.0,0.00018369,2]
[379934516,1755442555805,500.0,0.00018369,2]
[379934517,1755442556401,500.0,0.00018369,2]
[379934518,1755442557316,500.0,0.00018369,2]
[379934519,1755442557513,500.0,0.00018369,2]
[379934520,1755442557874,500.0,0.00018369,2]
[379934521,1755442558248,555.48839228,0.00018369,2]
[379934522,1755442564770,702.67684,0.00017466,2]
[379934523,1755442575026,480.0,0.00018369,2]
[379934524,1755442575914,352.12,0.00018369,2]
[379934525,1755442580010,480.0,0.00018369,2]
[379934526,1755442585872,1275.08487163,0.00018371,2]
[379934527,1755442585899,3724.91512837,0.00018371,2]
[379934533,1755442601866,1328.7644471,0.00018371,2]
[379934534,1755442616776,480.0,0.00018369,2]
[379934537,1755442635792,480.0,0.00018369,2]
[379934538,1755442653339,292.0953087,0.00017465,2]
[379934539,1755442653907,460.0,0.00018369,2]
[379934547,1755442694332,480.0,0.00018369,2]
[379934549,1755442705438,2683.49,0.00018369,2]
[379934558,1755442774775,70.73511583,0.00018369,2]
[379934559,1755442774800,409.26488417,0.00018369,2]
[379934560,1755442812455,1863.86414466,0.00018364,2]
[379934566,1755442830156,262.10676824,0.00027724,120]
[379934567,1755442833037,1000.0,0.00017466,2]
[379934574,1755442870199,10000.0,0.00028767,120]
[379934578,1755442886922,1984.73,0.00028767,120]
[379934584,1755443033093,5000.0,0.00018371,2]
[379934586,1755443049917,1726.87097117,0.00018371,2]
[379934587,1755443049942,3273.12902883,0.00018371,2]
[379934589,1755443066044,5000.0,0.00018371,2]
[379934590,1755443081994,1726.87097117,0.00018371,2]
[379934591,1755443082018,3273.12902883,0.00018371,2]
[379934593,1755443088118,162.54304107,0.00018356,2]
[379934595,1755443097958,1630.88112656,0.00018365,2]
[379934596,1755443098190,4933.44680354,0.00018,2]
[379934597,1755443098213,10000.0,0.00018,2]
[379934598,1755443098235,10000.0,0.00018,2]
[379934599,1755443098257,10000.0,0.00018,2]
[379934600,1755443098278,10000.0,0.00018,2]
[379934601,1755443098300,10000.0,0.00018,2]
[379934602,1755443098322,10000.0,0.00018,2]
[379934603,1755443098345,10000.0,0.00018,2]
[379934604,1755443098368,10000.0,0.00018,2]
[379934605,1755443098390,10000.0,0.00018,2]
[379934606,1755443098413,10000.0,0.00018,2]
[379934607,1755443098436,10000.0,0.00018,2]
[379934608,1755443098458,10000.0,0.00018,2]
[379934609,1755443098482,10000.0,0.00018,2]
[379934610,1755443098504,10000.0,0.00018,2]
[379934611,1755443098525,2476.11417921,0.00018,2]
[379934612,1755443099495,5000.0,0.00018371,2]
[379934613,1755443117210,2523.88582079,0.00018371,2]
[379934614,1755443117234,2476.11417921,0.00018371,2]
[379934615,1755443125729,874.9740542,0.00018369,2]
[379934623,1755443134191,5000.0,0.00018371,2]
[379934624,1755443150524,1648.91176659,0.00018371,2]
[379934625,1755443150548,3351.08823341,0.00018371,2]
[379934626,1755443168087,5000.0,0.00018371,2]
[379934628,1755443195495,1648.91176659,0.00018371,2]
[379934629,1755443195585,1133.22279132,0.00018371,2]
[379934630,1755443211798,5000.0,0.00018371,2]
[379934632,1755443237137,-1200.0,0.00018455,2]
[379934633,1755443237164,-9.0240815,0.00018456,2]
[379934634,1755443253363,299.29303005,0.00018151,2]
[379934637,1755443281974,3567.48417863,0.00017466,2]
[379934638,1755443281999,6432.51582137,0.00017466,2]
[379934639,1755443346065,210.35256253,0.00018356,2]
[379934651,1755443373628,179.69085456,0.00018356,2]
[379934652,1755443386103,1499.65371423,0.00018365,2]
[379934654,1755443405257,545.144203,0.00013699,2]
[379934686,1755443432219,-260.0,0.00018456,2]
[379934688,1755443432228,-300.0,0.00018456,2]
[379934690,1755443432238,-237.0,0.00018456,2]
[379934692,1755443432248,-480.0,0.00018457,2]
[379934694,1755443432257,-480.0,0.00018457,2]
[379934695,1755443432267,-480.0,0.00018457,2]
[379934697,1755443432276,-480.0,0.00018457,2]
[379934699,1755443432285,-480.0,0.00018457,2]
[379934701,1755443432295,-480.0,0.00018457,2]
[379934703,1755443432304,-480.0,0.00018457,2]
[379934705,1755443432314,-480.0,0.00018457,2]
[379934707,1755443432324,-480.0,0.00018457,2]
[379934709,1755443432333,-483.69763537,0.00018457,2]
[379934711,1755443432343,-480.0,0.00018457,2]
[379934713,1755443432352,-484.88889172,0.00018457,2]
[379934715,1755443432361,-480.0,0.00018457,2]
[379934717,1755443432371,-488.53232067,0.00018457,2]
[379934719,1755443432380,-480.0,0.00018457,2]
[379934722,1755443432390,-480.0,0.00018457,2]
[379934724,1755443432399,-329.83267832,0.00018464,2]
[379934726,1755443432408,-317.19180027,0.00018464,2]
[379934728,1755443432417,-500.0,0.00018465,2]
[379934730,1755443432427,-480.0,0.00018465,2]
[379934732,1755443432436,-480.0,0.00018465,2]
[379934734,1755443432445,-480.0,0.00018465,2]
[379934736,1755443432454,-440.83309746,0.00018465,2]
[379934738,1755443432464,-480.0,0.00018465,2]
[379934740,1755443432474,-480.0,0.00018465,2]
[379934742,1755443432484,-480.0,0.00018465,2]
[379934743,1755443432493,-480.0,0.00018465,2]
[379934745,1755443432502,-480.0,0.00018465,2]
[379934747,1755443432512,-440.0,0.00018465,2]
[379934749,1755443432522,-270.85511728,0.00018465,2]
[379934751,1755443432532,-480.0,0.00018465,2]
[379934753,1755443432542,-480.0,0.00018465,2]
[379934755,1755443432553,-480.0,0.00018465,2]
[379934757,1755443432563,-480.0,0.00018465,2]
[379934759,1755443432572,-480.0,0.00018465,2]
[379934761,1755443432581,-480.0,0.00018465,2]
[379934763,1755443432591,-480.0,0.00018465,2]
[379934765,1755443432600,-480.0,0.00018465,2]
[379934767,1755443432610,-480.0,0.00018465,2]
[379934769,1755443432619,-480.0,0.00018465,2]
[379934771,1755443432628,-480.0,0.00018465,2]
[379934773,1755443432637,-420.0,0.00018465,2]
[379934775,1755443432647,-480.0,0.00018465,2]
[379934777,1755443432656,-182.66852433,0.00018465,2]
[379934779,1755443432665,-480.0,0.00018465,2]
[379934781,1755443432675,-195.34511371,0.00018465,2]
[379934783,1755443432684,-482.15781662,0.00018465,2]
[379934785,1755443432694,-482.9380629,0.00018465,2]
[379934787,1755443432703,-480.0,0.00018465,2]
[379934788,1755443432712,-480.0,0.00018465,2]
[379934789,1755443432722,-423.9951187,0.00018465,2]
[379934790,1755443432731,-480.0,0.00018465,2]
[379934791,1755443432740,-441.65532427,0.00018465,2]
[379934792,1755443432749,-460.24079446,0.00018465,2]
[379934793,1755443432759,-483.12577657,0.00018465,2]
[379934795,1755443432768,-480.0,0.00018465,2]
[379934797,1755443432778,-482.11174448,0.00018465,2]
[379934799,1755443432792,-484.44663359,0.00018465,2]
[379934800,1755443432802,-481.01897748,0.00018465,2]
[379934801,1755443432812,-480.0,0.00018465,2]
[379934802,1755443432822,-481.24587298,0.00018465,2]
[379934803,1755443432832,-480.0,0.00018465,2]
[379934804,1755443432842,-481.07492063,0.00018465,2]
[379934805,1755443432851,-480.0,0.00018465,2]
[379934806,1755443432861,-480.0,0.00018465,2]
[379934807,1755443432870,-483.16792609,0.00018465,2]
[379934808,1755443432880,-480.0,0.00018466,2]
[379934810,1755443432890,-480.0,0.00018466,2]
[379934813,1755443432899,-480.0,0.00018466,2]
[379934816,1755443432910,-480.0,0.00018466,2]
[379934818,1755443432919,-480.0,0.00018466,2]
[379934821,1755443432929,-484.6371238,0.00018466,2]
[379934824,1755443432939,-480.0,0.00018466,2]
[379934827,1755443432948,-480.0,0.00018466,2]
[379934829,1755443432957,-480.0,0.00018466,2]
[379934831,1755443432967,-480.0,0.00018466,2]
[379934833,1755443432977,-480.0,0.00018466,2]
[379934835,1755443432986,-480.0,0.00018466,2]
[379934837,1755443432996,-480.0,0.00018466,2]
[379934839,1755443433006,-410.88905945,0.00018466,2]
[379934841,1755443433016,-480.0,0.00018466,2]
[379934843,1755443433025,-480.0,0.00018466,2]
[379934845,1755443433035,-480.0,0.00018466,2]
[379934847,1755443433051,-460.0,0.00018466,2]
[379934849,1755443433060,-480.0,0.00018466,2]
[379934851,1755443433070,-500.0,0.00018466,2]
[379934852,1755443433079,-480.0,0.00018466,2]
[379934854,1755443433088,-480.0,0.00018466,2]
[379934856,1755443433098,-300.0,0.000185,2]
[379934858,1755443433108,-1260.52903179,0.00018528,2]
[379934860,1755443433118,-151.0,0.00018532,2]
[379934862,1755443433128,-151.0,0.00018532,2]
[379934864,1755443433138,-151.0,0.00018532,2]
[379934867,1755443433149,-500.0,0.00018532,2]
[379934868,1755443433160,-151.0,0.00018532,2]
[379934871,1755443433171,-151.0,0.00018532,2]
[379934873,1755443433181,-500.0,0.00018532,2]
[379934874,1755443433190,-151.0,0.00018532,2]
[379934876,1755443433199,-151.0,0.00018532,2]
[379934878,1755443433209,-151.0,0.00018532,2]
[379934880,1755443433219,-151.0,0.00018532,2]
[379934882,1755443433229,-500.0,0.00018532,2]
[379934884,1755443433239,-151.0,0.00018532,2]
[379934886,1755443433249,-151.0,0.00018532,2]
[379934888,1755443433259,-500.0,0.00018532,2]
[379934890,1755443433268,-151.0,0.00018532,2]
[379934892,1755443433278,-151.0,0.00018532,2]
[379934894,1755443433288,-151.0,0.00018532,2]
[379934896,1755443433298,-500.0,0.00018532,2]
[379934898,1755443433308,-1000.0,0.00018532,2]
[379934900,1755443433317,-151.0,0.00018532,2]
[379934902,1755443433327,-500.0,0.00018532,2]
[379934904,1755443433336,-151.9529677,0.00018532,2]
[379934906,1755443433346,-661.0,0.00018532,2]
[379934908,1755443433356,-151.0,0.00018532,2]
[379934910,1755443433366,-500.0,0.00018532,2]
[379934912,1755443433376,-151.0,0.00018532,2]
[379934914,1755443433385,-1344.77307438,0.00018532,2]
[379934916,1755443433395,-500.0,0.00018532,2]
[379934918,1755443433404,-151.0,0.00018532,2]
[379934920,1755443433414,-500.0,0.00018532,2]
[379934922,1755443433423,-151.0,0.00018532,2]
[379934923,1755443433432,-151.0,0.00018532,2]
[379934925,1755443433441,-151.0,0.00018532,2]
[379934927,1755443433451,-158.42217796,0.00018532,2]
[379934929,1755443433460,-1248.27,0.00018533,3]
[379934931,1755443433470,-624.13,0.00018533,3]
[379934933,1755443433479,-312.07,0.00018533,3]
[379934935,1755443433489,-156.03,0.00018533,3]
[379934937,1755443433498,-468.13,0.00018533,3]
[379934939,1755443433507,-551.33426696,0.00018542,2]
[379934941,1755443433517,-220.75172192,0.00018543,2]
[379934943,1755443433527,-4351.76030382,0.00018543,2]
[379934946,1755443433545,-17210.42455348,0.00018543,2]
[379934948,1755443433557,-27860.16044614,0.00018543,2]
[379934950,1755443433567,-1000.0,0.00018641,2]
[379934952,1755443433577,-557.47421785,0.00018643,2]
[379934954,1755443433586,-449.44399466,0.00018643,2]
[379934956,1755443433595,-441.2423209,0.00018643,2]
[379934958,1755443433604,-440.46507739,0.00018643,2]
[379934960,1755443433614,-298.74920764,0.00018643,2]
[379934962,1755443433624,-480.0,0.00018643,2]
[379934964,1755443433633,-480.0,0.00018643,2]
[379934966,1755443433642,-480.0,0.00018643,2]
[379934968,1755443433652,-480.0,0.00018643,2]
[379934970,1755443433661,-440.0,0.00018643,2]
[379934972,1755443433670,-1961.90570336,0.00018725,2]
[379934974,1755443433679,-480.0,0.00018731,2]
[379934975,1755443433689,-480.0,0.00018731,2]
[379934976,1755443433699,-480.0,0.00018731,2]
[379934977,1755443433708,-480.0,0.00018731,2]
[379934978,1755443433717,-443.13849968,0.00018731,2]
[379934979,1755443433726,-482.58838232,0.00018731,2]
[379934980,1755443433736,-480.0,0.00018731,2]
[379934981,1755443433745,-480.0,0.00018731,2]
[379934982,1755443433755,-480.0,0.00018731,2]
[379934983,1755443433764,-480.0,0.00018731,2]
[379934984,1755443433774,-394.33146953,0.00018731,2]
[379934985,1755443433783,-480.0,0.00018731,2]
[379934986,1755443433792,-500.0,0.00018739,2]
[379934987,1755443433802,-295.59533152,0.00018739,2]
[379934988,1755443433811,-480.0,0.00018739,2]
[379934989,1755443433820,-612.50321559,0.00018739,2]
[379934990,1755443433830,-480.0,0.00018739,2]
[379934991,1755443433839,-480.0,0.00018739,2]
[379934992,1755443433849,-480.0,0.00018739,2]
[379934993,1755443433858,-480.0,0.00018739,2]
[379934994,1755443433868,-480.0,0.00018739,2]
[379934995,1755443433877,-480.0,0.00018739,2]
[379934996,1755443433887,-480.0,0.00018739,2]
[379934997,1755443433896,-480.0,0.00018739,2]
[379934998,1755443433906,-480.0,0.00018739,2]
[379934999,1755443433915,-480.0,0.00018739,2]
[379935000,1755443433924,-480.0,0.00018739,2]
[379935001,1755443433934,-480.0,0.0001874,2]
[379935002,1755443433944,-480.0,0.0001874,2]
[379935003,1755443433954,-480.0,0.0001874,2]
[379935004,1755443433963,-480.0,0.0001874,2]
[379935005,1755443433974,-480.0,0.0001874,2]
[379935006,1755443433985,-480.0,0.0001874,2]
[379935007,1755443433995,-480.0,0.0001874,2]
[379935008,1755443434005,-480.0,0.0001874,2]
[379935009,1755443434015,-480.0,0.0001874,2]
[379935010,1755443434024,-480.0,0.0001874,2]
[379935011,1755443434034,-485.66265952,0.0001874,2]
[379935013,1755443434044,-324.25194478,0.00018773,2]
[379935014,1755443434053,-200.0,0.00018825,20]
[379935016,1755443434063,-200.0,0.00018825,20]
[379935018,1755443434073,-200.0,0.00018825,20]
[379935020,1755443434083,-200.0,0.00018825,20]
[379935022,1755443434093,-200.0,0.00018825,20]
[379935024,1755443434103,-200.0,0.00018825,20]
[379935026,1755443434113,-200.0,0.00018825,20]
[379935028,1755443434122,-200.0,0.00018825,20]
[379935030,1755443434132,-200.0,0.00018825,20]
[379935032,1755443434142,-200.0,0.00018825,20]
[379935034,1755443434151,-600.0,0.00018833,20]
[379935036,1755443434162,-1950.05765584,0.000189,2]
[379935038,1755443434173,-440.78088497,0.00018917,2]
[379935040,1755443434182,-480.0,0.00018917,2]
[379935042,1755443434192,-480.0,0.00018917,2]
[379935044,1755443434203,-151.0,0.00018917,2]
[379935046,1755443434212,-440.0,0.00018917,2]
[379935048,1755443434223,-151.0,0.00018917,2]
[379935050,1755443434233,-151.0,0.00018917,2]
[379935052,1755443434243,-500.0,0.00019,2]
[379935054,1755443434254,-480.0,0.00019005,2]
[379935056,1755443434263,-480.0,0.00019005,2]
[379935058,1755443434273,-480.0,0.00019005,2]
[379935059,1755443434283,-420.0,0.00019005,2]
[379935062,1755443434293,-480.0,0.00019005,2]
[379935064,1755443434303,-480.0,0.00019005,2]
[379935066,1755443434312,-480.0,0.00019005,2]
[379935068,1755443434322,-500.0,0.00019013,2]
[379935070,1755443434332,-480.0,0.00019013,2]
[379935072,1755443434341,-480.0,0.00019013,2]
[379935074,1755443434351,-440.0,0.00019013,2]
[379935076,1755443434361,-480.0,0.00019013,2]
[379935078,1755443434370,-480.0,0.00019013,2]
[379935079,1755443434380,-480.0,0.00019013,2]
[379935082,1755443434389,-480.0,0.00019013,2]
[379935084,1755443434399,-480.0,0.00019013,2]
[379935085,1755443434409,-480.0,0.00019013,2]
[379935087,1755443434419,-151.0,0.00019014,2]
[379935090,1755443434429,-304.770316,0.00019014,2]
[379935092,1755443434438,-480.0,0.00019014,2]
[379935094,1755443434448,-480.0,0.00019014,2]
[379935095,1755443434457,-480.0,0.00019014,2]
[379935097,1755443434467,-480.0,0.00019014,2]
[379935099,1755443434476,-480.0,0.00019014,2]
[379935101,1755443434486,-480.0,0.00019014,2]
[379935103,1755443434495,-480.0,0.00019014,2]
[379935105,1755443434505,-151.0,0.00019016,2]
[379935107,1755443434515,-308.76916473,0.00019049,2]
[379935109,1755443434524,-5983.83591318,0.00019078,2]
[379935111,1755443434533,-502.31631118,0.00019093,2]
[379935113,1755443434543,-220.75172192,0.00019112,2]
[379935115,1755443434552,-500.0,0.00019173,2]
[379935117,1755443434562,-500.0,0.00019173,2]
[379935119,1755443434571,-500.0,0.00019173,2]
[379935121,1755443434580,-500.0,0.00019173,2]
[379935123,1755443434590,-262.81543971,0.00019173,2]
[379935125,1755443434599,-500.0,0.00019173,2]
[379935127,1755443434609,-500.0,0.00019173,2]
[379935129,1755443434618,-460.0,0.00019178,2]
[379935131,1755443434628,-480.0,0.00019178,2]
[379935133,1755443434637,-480.0,0.00019178,2]
[379935135,1755443434646,-480.0,0.00019178,2]
[379935137,1755443434655,-478.29842651,0.00019178,2]
[379935139,1755443434665,-480.0,0.00019178,2]
[379935141,1755443434675,-480.0,0.00019178,2]
[379935143,1755443434684,-480.43677195,0.00019178,2]
[379935145,1755443434695,-480.0,0.00019178,2]
[379935147,1755443434706,-463.71513994,0.00019178,2]
[379935149,1755443434716,-209.1779612,0.00019178,2]
[379935152,1755443434729,-270.8220388,0.00019178,2]
[379935154,1755443434739,-480.0,0.00019178,2]
[379935156,1755443434748,-480.0,0.00019178,2]
[379935158,1755443434759,-290.00312792,0.00019178,2]
[379935160,1755443434768,-479.19582504,0.00019178,2]
[379935162,1755443434777,-480.73113625,0.00019178,2]
[379935181,1755443434951,-320.0,0.00019178,2]
[379935183,1755443434962,-480.0,0.00019178,2]
[379935185,1755443434973,-483.16274101,0.00019178,2]
[379935187,1755443434982,-511.2316452,0.00019178,2]
[379935189,1755443434991,-484.43790784,0.00019178,2]
[379935191,1755443435001,-480.0,0.00019178,2]
[379935193,1755443435011,-402.35472963,0.00019178,2]
[379935195,1755443435020,-480.0,0.00019178,2]
[379935197,1755443435030,-456.38556634,0.00019178,2]
[379935199,1755443435039,-480.0,0.00019178,2]
[379935201,1755443435048,-429.78604463,0.00019178,2]
[379935227,1755443438248,-128.47943226,0.00019178,2]
[379935228,1755443438257,-480.0,0.00019178,2]
[379935229,1755443438267,-460.0,0.00019178,2]
[379935230,1755443438276,-480.0,0.00019178,2]
[379935231,1755443438286,-481.30311016,0.00019178,2]
[379935232,1755443438295,-480.0,0.00019178,2]
[379935233,1755443438305,-440.0,0.00019178,2]
[379935234,1755443438314,-480.0,0.00019178,2]
[379935235,1755443438323,-480.0,0.00019178,2]
[379935236,1755443438334,-480.0,0.00019178,2]
[379935237,1755443438343,-480.0,0.00019178,2]
[379935238,1755443438354,-480.0,0.00019178,2]
[379935239,1755443438363,-480.0,0.00019178,2]
[379935240,1755443438372,-480.0,0.00019178,2]
[379935241,1755443438382,-500.0,0.00019178,2]
[379935242,1755443438391,-500.0,0.00019178,2]
[379935243,1755443438401,-500.0,0.00019178,2]
[379935244,1755443438411,-158.14220697,0.00019178,2]
[379935245,1755443438420,-564.46074687,0.00019178,2]
[379935246,1755443438430,-480.0,0.00019178,2]
[379935247,1755443438439,-480.0,0.00019178,2]
[379935248,1755443438449,-480.0,0.00019178,2]
[379935249,1755443438458,-480.0,0.00019178,2]
[379935250,1755443438467,-265.82725239,0.00019178,2]
[379935251,1755443438477,-480.0,0.00019178,2]
[379935252,1755443438486,-480.0,0.00019178,2]
[379935253,1755443438496,-480.0,0.00019178,2]
[379935254,1755443438505,-480.0,0.00019178,2]
[379935255,1755443438514,-480.0,0.00019178,2]
[379935256,1755443438524,-481.33996938,0.00019178,2]
[379935257,1755443438533,-460.0,0.00019178,2]
[379935258,1755443438543,-480.0,0.00019178,2]
[379935259,1755443438552,-480.0,0.00019178,2]
[379935260,1755443438561,-480.0,0.00019178,2]
[379935261,1755443438571,-480.0,0.00019178,2]
[379935262,1755443438580,-480.0,0.00019178,2]
[379935263,1755443438590,-480.0,0.00019178,2]
[379935264,1755443438599,-480.0,0.00019178,2]
[379935265,1755443438608,-478.40519851,0.00019178,2]
[379935266,1755443438617,-480.0,0.00019178,2]
[379935267,1755443438626,-480.0,0.00019178,2]
[379935268,1755443438636,-480.0,0.00019178,2]
[379935269,1755443438645,-480.0,0.00019178,2]
[379935270,1755443438655,-461.14848999,0.00019178,2]
[379935271,1755443438664,-480.0,0.00019178,2]
[379935272,1755443438673,-480.0,0.00019178,2]
[379935273,1755443438683,-480.0,0.00019178,2]
[379935274,1755443438692,-481.32926192,0.00019178,2]
[379935275,1755443438701,-477.0643314,0.00019178,2]
[379935276,1755443438714,-2.9356686,0.00019178,2]
[379935277,1755443438725,-460.0,0.00019178,2]
[379935278,1755443438735,-480.0,0.00019178,2]
[379935279,1755443438744,-480.0,0.00019178,2]
[379935280,1755443438754,-480.0,0.00019178,2]
[379935281,1755443438763,-480.0,0.00019178,2]
[379935282,1755443438773,-480.0,0.00019178,2]
[379935283,1755443438782,-480.0,0.00019178,2]
[379935284,1755443438792,-480.0,0.00019178,2]
[379935285,1755443438801,-480.0,0.00019178,2]
[379935286,1755443438810,-480.0,0.00019178,2]
[379935287,1755443438820,-480.0,0.00019178,2]
[379935288,1755443438830,-480.0,0.00019178,2]
[379935289,1755443438839,-354.13763363,0.00019178,2]
[379935290,1755443438856,-125.86236637,0.00019178,2]
[379935291,1755443438866,-480.0,0.00019178,2]
[379935292,1755443438876,-480.0,0.00019178,2]
[379935293,1755443438885,-480.0,0.00019178,2]
[379935294,1755443438895,-480.0,0.00019178,2]
[379935295,1755443438904,-480.0,0.00019178,2]
[379935296,1755443438913,-480.0,0.00019178,2]
[379935297,1755443438923,-480.0,0.00019178,2]
[379935298,1755443438932,-480.0,0.00019178,2]
[379935299,1755443438942,-480.0,0.00019178,2]
[379935300,1755443438952,-464.78722076,0.00019178,2]
[379935301,1755443438961,-480.0,0.00019178,2]
[379935302,1755443438970,-480.0,0.00019178,2]
[379935303,1755443438980,-480.0,0.00019178,2]
[379935304,1755443438989,-480.0,0.00019178,2]
[379935305,1755443438998,-480.0,0.00019178,2]
[379935306,1755443439008,-175.1987518,0.00019178,2]
[379935307,1755443439018,-480.0,0.00019178,2]
[379935308,1755443439027,-2752.48,0.00019178,2]
[379935309,1755443439037,-480.0,0.00019178,2]
[379935310,1755443439047,-480.0,0.00019178,2]
[379935311,1755443439057,-480.0,0.00019178,2]
[379935312,1755443439067,-480.0,0.00019178,2]
[379935313,1755443439077,-480.0,0.00019178,2]
[379935314,1755443439087,-783.83,0.00019178,2]
[379935315,1755443439097,-480.0,0.00019178,2]
[379935316,1755443439106,-480.0,0.00019178,2]
[379935317,1755443439116,-481.65522331,0.00019178,2]
[379935318,1755443439126,-480.0,0.00019178,2]
[379935319,1755443439137,-480.0,0.00019178,2]
[379935320,1755443439147,-480.0,0.00019178,2]
[379935321,1755443439157,-500.0,0.00019178,2]
[379935322,1755443439170,-480.0,0.00019178,2]
[379935323,1755443439179,-480.0,0.00019178,2]
[379935324,1755443439188,-480.0,0.00019178,2]
[379935325,1755443439198,-480.0,0.00019178,2]
[379935326,1755443439209,-480.0,0.00019178,2]
[379935327,1755443439219,-480.0,0.00019178,2]
[379935328,1755443439229,-480.0,0.00019178,2]
[379935329,1755443439240,-480.0,0.00019178,2]
[379935330,1755443439252,-480.0,0.00019178,2]
[379935331,1755443439261,-480.0,0.00019178,2]
[379935332,1755443439271,-480.0,0.00019178,2]
[379935333,1755443439280,-480.0,0.00019178,2]
[379935334,1755443439290,-480.0,0.00019178,2]
[379935335,1755443439300,-481.07632266,0.00019178,2]
[379935336,1755443439309,-480.0,0.00019178,2]
[379935337,1755443439319,-462.3705396,0.00019178,2]
[379935338,1755443439328,-480.0,0.00019178,2]
[379935339,1755443439337,-480.0,0.00019178,2]
[379935340,1755443439347,-480.0,0.00019178,2]
[379935341,1755443439356,-480.0,0.00019178,2]
[379935342,1755443439366,-480.0,0.00019178,2]
[379935343,1755443439375,-480.0,0.00019178,2]